[Event "44th Chess Olympiad Women 2022"]
[Site "Chennai"]
[Date "2022.07.29"]
[Round "1.10"]
[White "Juarez Garcia, Daniela"]
[Black "Assaubayeva, Bibisara"]
[Result "0-1"]
[ECO "B22"]
[WhiteElo "1725"]
[BlackElo "2436"]
[Annotator "TA"]
[PlyCount "100"]
[EventDate "2022.07.29"]
[EventType "team-tourn"]
[EventCountry "IND"]
[SourceTitle "playchess.com"]
[Source "ChessBase"]
[SourceQuality "1"]
[WhiteTeam "Guatemala"]
[BlackTeam "Kazakhstan"]
[WhiteTeamCountry "GUA"]
[BlackTeamCountry "KAZ"]
[TimeControl "40/5400+30:1800+30"]

{[%evp 12,100,2,-17,-5,-16,-11,-10,-16,-13,-14,-15,-22,-18,-10,-28,-16,-10,0,0,0,0,-6,-19,-7,-17,0,-20,-7,-8,-8,-61,-71,-74,-34,-46,-50,-84,-35,-43,0,-85,-80,-132,-127,-211,-225,-209,-218,-324,-324,-321,-301,-308,-305,-379,-323,-563,-562,-500,-500,-490,-490,-791,-756,-700,-688,-4999,-4813,-1937,-1641,-29972,-29975,-29975,-29971,-29980,-29981,-29981,-29982,-29982,-29982,-29982,-29983,-29986,-29987,-29990,-29991,-29991,-29992,-29992,-29993]} 1. e4 {[%emt 0:00:03][%cal Be2e4,Be4e5][%mdl 32]} c5 {[%emt 0:00:18]} 2. c3 {[%emt 0:00:21]} Nf6 {[%emt 0:00:27]} 3. e5 {[%emt 0:01:18]} Nd5 {[%emt 0:00:07]} 4. d4 {[%emt 0:00:57]} cxd4 {[%emt 0:00:17]} 5. cxd4 {[%emt 0:01:00]} d6 {[%emt 0:00:12]} 6. Nf3 {[%emt 0:02:48]} Nc6 {[%emt 0:00:11]} 7. Nc3 {[%emt 0:00:31]} (7. Bc4 {feels hotter.} Nb6 8. Bb5 dxe5 9. Nxe5 Bd7 10. Bxc6 Bxc6 11. O-O) 7... dxe5 {[%emt 0:03:10] B22: Sicilian: 2 c3.} 8. Nxe5 {[%emt 0:09:47]} Nxc3 {[%emt 0:21:35]} 9. bxc3 {[%emt 0:05:52]} Nxe5 {[%emt 0:00:25] The position is equal.} 10. dxe5 {[%emt 0:00:25]} Qxd1+ {[%emt 0:00:31]} 11. Kxd1 {[%emt 0:00:11]} Bd7 {[%emt 0:04:00]} 12. Be3 {[%emt 0:07:37]} Bc6 {[%emt 0:03:03]} 13. f3 {[%emt 0:05:24]} e6 {[%emt 0:03:08]} 14. a4 {[%emt 0:02:19]} O-O-O+ {[%emt 0:03:10]} 15. Kc2 {[%emt 0:02:47]} a6 {[%emt 0:07:16] [#] Prevents Bb5.} 16. Bc4 $146 {[%emt 0:06:48] Against Rd5} ({Predecessor:} 16. a5 Rd5 17. Bd4 Bc5 18. Bc4 Rxd4 19. cxd4 Bxd4 20. Rae1 Kc7 21. Kb3 Rd8 22. Rhf1 {1-0 (62) Orozbaev,E (2061)-Vasquez Schroder,R (2456) Chess.com INT 2021}) 16... Be7 {[%emt 0:00:47]} 17. Bb3 {[%emt 0:07:53]} g5 {[%emt 0:03:44]} 18. Rhf1 {[%emt 0:04:53]} h5 {[%emt 0:03:05]} 19. Rae1 {[%emt 0:06:27]} Kd7 {[%emt 0:07:33]} 20. Rd1+ {[%emt 0:01:21]} Ke8 {[%emt 0:00:42]} 21. Bb6 {[%emt 0:00:33]} ({White should try} 21. Rxd8+ $11 Bxd8 22. g3) 21... Rxd1 $15 {[%emt 0:05:22]} 22. Kxd1 {[%emt 0:00:20]} Bd8 {[%emt 0:01:52]} 23. Bd4 {[%emt 0:00:58]} g4 {[%emt 0:01:12]} 24. Ke2 {[%emt 0:01:29]} Rg8 {[%emt 0:02:04]} (24... h4 $17) 25. Rg1 $1 {[%emt 0:05:12]} Bg5 {[%emt 0:03:02]} 26. h3 {[%emt 0:03:46] [#]} (26. Bd1 $11 {remains equal.}) 26... Bf4 $1 $17 {[%emt 0:02:11] Black keeps a firm grip on the game.} 27. fxg4 {[%emt 0:06:17]} (27. hxg4 $142 hxg4 28. g3 Bxf3+ 29. Kd3) 27... hxg4 {[%emt 0:00:21]} 28. g3 {[%emt 0:00:47] [#]} (28. hxg4 $17 Rxg4 29. Kd3) 28... gxh3 $1 $19 {[%emt 0:01:02]} 29. gxf4 {[%emt 0:00:20]} Rh8 {[%emt 0:00:23]} 30. a5 {[%emt 0:03:55]} (30. f5 $142 h2 31. Rf1) 30... h2 {[%emt 0:04:26]} 31. Rf1 {[%emt 0:01:00]} h1=Q {[%emt 0:00:50]} 32. Rxh1 {[%emt 0:00:06]} Rxh1 {[%emt 0:00:08][%mdl 4096] Endgame KRB-KB} (32... Bxh1 $2 {too greedy.} 33. Kd3 $19) 33. Kd3 {[%emt 0:00:43]} Ra1 {[%emt 0:00:48]} 34. Bb6 $2 {[%emt 0:00:17]} (34. Kc2) 34... Ba4 {[%emt 0:00:07]} 35. Bc4 {[%emt 0:00:29]} Bb5 {[%emt 0:00:15]} 36. Bxb5+ {[%emt 0:00:36]} axb5 {[%emt 0:00:03] KR-KB} 37. Kc2 {[%emt 0:00:42]} (37. Kd4 $142) 37... Ra4 {[%emt 0:00:05]} 38. Bd4 {[%emt 0:00:22]} Rxa5 {[%emt 0:00:08]} 39. Kb2 {[%emt 0:00:18]} Kd7 {[%emt 0:00:06]} 40. Kb3 {[%emt 0:00:07]} Kc6 {[%emt 0:00:06] Threatens to win with ...Ra1.} 41. c4 {[%emt 0:30:58]} bxc4+ {[%emt 0:30:05] Black mates.} 42. Kb4 {[%emt 0:00:11]} Rd5 {[%emt 0:00:08]} 43. Kxc4 {[%emt 0:00:06]} b5+ {[%emt 0:00:22]} 44. Kc3 {[%emt 0:00:25]} b4+ {[%emt 0:00:06]} 45. Kc4 {[%emt 0:00:06] [#]} Rxd4+ $1 {[%emt 0:00:05]} 46. Kxd4 {[%emt 0:00:04]} Kb5 {[%emt 0:00:06]} 47. Ke3 {[%emt 0:01:01]} Kc4 {[%emt 0:00:05]} 48. Ke4 {[%emt 0:00:25]} b3 {[%emt 0:00:04]} 49. f5 {[%emt 0:00:05]} b2 {[%emt 0:00:04]} 50. fxe6 {[%emt 0:00:13]} b1=Q+ {[%emt 0:00:05] Weighted Error Value: White=0.61/Black=0.16 (very precise)} 0-1

[Event "44th Chess Olympiad Women 2022"]
[Site "Chennai"]
[Date "2022.07.29"]
[Round "1.11"]
[White "Divya Deshmukh"]
[Black "Bagga, Khushi"]
[Result "1-0"]
[ECO "C61"]
[WhiteElo "2319"]
[BlackElo "1328"]
[Annotator "TA"]
[PlyCount "67"]
[EventDate "2022.07.29"]
[EventType "team-tourn"]
[EventCountry "IND"]
[SourceTitle "playchess.com"]
[Source "ChessBase"]
[SourceQuality "1"]
[WhiteTeam "India"]
[BlackTeam "Wales"]
[WhiteTeamCountry "IND"]
[BlackTeamCountry "WLS"]
[TimeControl "40/5400+30:1800+30"]

{[%evp 13,67,68,80,82,75,49,50,34,35,0,37,12,0,-22,80,35,45,29,31,48,155,135,127,137,385,380,384,383,377,395,393,369,409,391,408,362,423,410,470,467,554,546,531,555,554,564,589,592,784,570,562,558,1635,1067,1041,1032]} 1. e4 {[%emt 0:00:08]} e5 {[%emt 0:00:04]} 2. Nf3 {[%emt 0:00:06]} Nc6 {[%emt 0:00:19]} 3. Bb5 {[%emt 0:00:06]} Nd4 {[%emt 0:00:14]} 4. Nxd4 {[%emt 0:02:40]} exd4 {[%emt 0:00:06]} 5. O-O {[%emt 0:00:32]} c6 {[%emt 0:01:59]} 6. Bc4 {[%emt 0:01:28]} d5 {[%emt 0:02:02]} 7. exd5 {[%emt 0:01:52]} cxd5 {[%emt 0:00:16]} 8. Bb5+ {[%emt 0:02:58] C61: Ruy Lopez: Bird's Defence.} Bd7 {[%emt 0:00:37]} 9. Qe2+ {[%emt 0:00:24]} Ne7 {[%emt 0:04:13][%cal Bg8e7,Be7c6,Bc6b4][%mdl 32]} 10. Re1 {[%emt 0:15:11] White is slightly better.} Bxb5 {[%emt 0:01:40]} 11. Qxb5+ {[%emt 0:02:40]} Qd7 {[%emt 0:00:14]} 12. Qd3 {[%emt 0:01:03]} O-O-O $1 {[%emt 0:06:28] [#]} 13. b4 $146 {[%emt 0:14:55][%cal Bb2b4,Bb4b5][%mdl 32]} ({Predecessor:} 13. Qxd4 Nc6 14. Qa4 Bc5 15. c3 Rhe8 16. Rf1 d4 17. d3 Qf5 18. b4 Bb6 19. c4 Qxd3 {1-0 (47) Ponomarev,I (1957)-Faleev,V (1959) Novosibirsk 2009}) 13... Qc7 {[%emt 0:15:03]} (13... Nc6 $11) 14. Bb2 {[%emt 0:19:24]} (14. Qxd4 Nc6 15. Qg4+ Kb8 $11) 14... Nc6 {[%emt 0:09:20]} 15. b5 {[%emt 0:06:48]} Nb4 {[%emt 0:10:38][%csl LRc2,LRd3]} 16. Qb3 {[%emt 0:01:58] [#] Hoping for Rc1.} Qc4 {[%emt 0:03:13]} (16... Nxc2 $2 17. Rc1 Re8 18. Na3 (18. Qxd5 $2 Re5 $17) (18. b6 axb6 19. Na3 Bxa3 $18) 18... Nxa1 19. Rxc7+ Kxc7 20. Qd1 $18 (20. b6+ Kb8 $14)) ({Black should play} 16... Kb8 $1 $14 17. Rc1 Rc8 18. Bxd4 Nxc2) 17. Qh3+ $16 {[%emt 0:00:19]} Kb8 {[%emt 0:01:21]} 18. Na3 $36 {[%emt 0:00:05][%cal Bb1a3,Ba3c2,Bc2d4,Bd4b3][%mdl 2080] White is in control.} Qc7 {[%emt 0:03:58] Loses the game.} (18... Qc8 $16 {was called for.}) 19. c3 $18 {[%emt 0:00:15]} dxc3 {[%emt 0:03:05]} 20. dxc3 {[%emt 0:00:12]} Nc6 {[%emt 0:00:21]} 21. bxc6 {[%emt 0:00:09]} Qxc6 {[%emt 0:00:37]} 22. Nc2 {[%emt 0:00:29]} Bc5 {[%emt 0:02:10]} 23. Nd4 {[%emt 0:00:57]} Qf6 {[%emt 0:00:20]} 24. Re2 {[%emt 0:01:24]} h5 {[%emt 0:03:49]} 25. Nb3 {[%emt 0:01:42]} Bb6 {[%emt 0:05:33]} 26. c4 {[%emt 0:00:00][%cal Bc3c4,Bc4c5][%mdl 32] White is clearly winning.} Qc6 {[%emt 0:01:35]} 27. c5 {[%emt 0:02:35]} Bc7 {[%emt 0:00:48]} 28. Bxg7 {[%emt 0:01:01]} Rhg8 {[%emt 0:02:20]} 29. Be5 {[%emt 0:00:23]} Bxe5 {[%emt 0:03:02]} 30. Rxe5 {[%emt 0:00:03]} d4 {[%emt 0:08:33]} 31. Re7 {[%emt 0:02:15] [#] aiming for Na5.} Qf6 {[%emt 0:03:13]} 32. Rae1 {[%emt 0:01:54]} Qa6 {[%emt 0:01:14] Inhibits Na5.} 33. c6 {[%emt 0:00:42]} Qxc6 {[%emt 0:02:53]} 34. Na5 {[%emt 0:00:28] Weighted Error Value: White=0.18 (very precise) /Black=0.39} 1-0

[Event "44th Chess Olympiad Women 2022"]
[Site "Chennai"]
[Date "2022.07.29"]
[Round "1.11"]
[White "Ray, Hiya"]
[Black "Gomes, Mary Ann"]
[Result "0-1"]
[ECO "E11"]
[WhiteElo "1586"]
[BlackElo "2324"]
[Annotator "TA"]
[PlyCount "58"]
[EventDate "2022.07.29"]
[EventType "team-tourn"]
[EventCountry "IND"]
[SourceTitle "playchess.com"]
[Source "ChessBase"]
[SourceQuality "1"]
[WhiteTeam "Wales"]
[BlackTeam "India"]
[WhiteTeamCountry "WLS"]
[BlackTeamCountry "IND"]
[TimeControl "40/5400+30:1800+30"]

{[%evp 10,58,20,20,35,20,22,25,45,45,45,50,48,45,41,51,48,31,46,41,40,29,29,30,101,101,91,-7,-24,-112,-116,-107,-47,-62,-44,-125,0,0,17,-241,-239,-254,-243,-243,-254,-251,-188,-285,-276,-29989,-29990]} 1. d4 {[%emt 0:00:03]} Nf6 {[%emt 0:00:34]} 2. c4 {[%emt 0:00:29]} e6 {[%emt 0:00:08]} 3. Nf3 {[%emt 0:00:25]} Bb4+ {[%emt 0:00:13]} 4. Bd2 {[%emt 0:00:53]} Qe7 {[%emt 0:00:10]} 5. g3 {[%emt 0:00:46]} Bxd2+ {[%emt 0:01:51]} 6. Qxd2 {[%emt 0:00:18]} b6 {[%emt 0:01:18] E11: Bogo-Indian.} 7. Nc3 {[%emt 0:01:40]} Bb7 {[%emt 0:00:17]} 8. d5 {[%emt 0:01:08]} Na6 {[%emt 0:01:55] White has an edge.} 9. Bg2 {[%emt 0:00:48]} Nc5 {[%emt 0:01:28] [#]} 10. Nd4 $146 {[%emt 0:02:20] aiming for b4.} ({Predecessor:} 10. O-O O-O 11. Nb5 d6 12. Nfd4 Rfe8 13. dxe6 fxe6 14. Bxb7 Nxb7 15. Qg5 c5 16. Nf3 {0-1 (48) Nguyen,H (1970)-Gomes,M (2354) Chess.com INT 2020}) 10... a5 {[%emt 0:03:08]} 11. O-O {[%emt 0:00:59]} O-O {[%emt 0:00:32]} 12. e4 {[%emt 0:02:32]} d6 {[%emt 0:03:04]} 13. Rfe1 {[%emt 0:02:55]} Nfd7 {[%emt 0:03:27]} 14. f4 {[%emt 0:12:03]} e5 {[%emt 0:11:31]} 15. Nf5 {[%emt 0:13:50]} Qd8 {[%emt 0:07:52]} 16. Re2 {[%emt 0:02:52]} exf4 {[%emt 0:06:01]} (16... a4 $11) 17. gxf4 $16 {[%emt 0:00:18]} Ba6 {[%emt 0:09:52]} 18. e5 {[%emt 0:12:46]} (18. Qd4 Qf6 $14) (18. b3 $16) 18... Bxc4 $11 {[%emt 0:06:58]} 19. e6 {[%emt 0:06:21]} (19. Ree1 $1 $11 {remains equal.} Bd3 20. e6 Bxf5 21. e7) 19... fxe6 $17 {[%emt 0:09:04]} (19... Bxe2 $2 20. e7 Qc8 21. exf8=N (21. exf8=R+ Qxf8 22. Qxe2 Re8 $18) 21... Qxf8 22. Qxe2 $18) 20. dxe6 {[%emt 0:00:10] [#]} Bxe6 {[%emt 0:03:01]} ({Don't play} 20... Rxf5 $6 21. e7 Qe8 22. Bxa8 $15) (20... Nxe6 $1 $17 21. Bxa8 Qxa8 22. Ne7+ Kh8) 21. Rxe6 {[%emt 0:12:18]} Rxf5 {[%emt 0:01:01]} 22. Bxa8 {[%emt 0:03:51]} (22. Re3 $15) 22... Qxa8 {[%emt 0:09:41]} ({Black should play} 22... Nxe6 $17 23. Bd5 Qe7) 23. Re7 $11 {[%emt 0:08:28]} Qf8 {[%emt 0:05:15]} 24. Rae1 {[%emt 0:01:02][%mdl 8192] [#] White does not recover from this.} (24. Nd5 $11) 24... Ne5 $1 $19 {[%emt 0:00:38][%mdl 512]} 25. Qd5+ {[%emt 0:03:36]} (25. fxe5 Qxe7) 25... Kh8 {[%emt 0:00:28]} 26. R7xe5 {[%emt 0:01:23]} ({Not} 26. Rxc7 $2 Rxf4 27. Rd1 Rg4+ 28. Kh1 {[#]} Ne4 $1 $19 {[%mdl 512]}) 26... dxe5 {[%emt 0:00:07]} 27. fxe5 {[%emt 0:00:26]} Ne6 {[%emt 0:04:06] Strongly threatening ...Ng5.} 28. Ne4 {[%emt 0:01:27]} (28. Qxe6 $2 {gets mated.} Rg5+) (28. Ne2 $142 Qb4 29. Rf1 Qg4+ 30. Ng3 Rxf1+ 31. Kxf1) 28... Nf4 {[%emt 0:00:33]} 29. Qd4 {[%emt 0:00:57] [#]} (29. Qc6 $19) 29... Ne2+ $1 {[%emt 0:00:17][%mdl 512] Weighted Error Value: White=0.80/Black=0.19 (very precise)} 0-1

[Event "44th Chess Olympiad Women 2022"]
[Site "Chennai"]
[Date "2022.07.29"]
[Round "1.12"]
[White "Castillo Beitia, Ashley Alexandra"]
[Black "Terbe, Julianna"]
[Result "0-1"]
[ECO "D15"]
[WhiteElo "1587"]
[BlackElo "2291"]
[Annotator "TA"]
[PlyCount "58"]
[EventDate "2022.07.29"]
[EventType "team-tourn"]
[EventCountry "IND"]
[SourceTitle "playchess.com"]
[Source "ChessBase"]
[SourceQuality "1"]
[WhiteTeam "Panama"]
[BlackTeam "Hungary"]
[WhiteTeamCountry "PAN"]
[BlackTeamCountry "HUN"]
[TimeControl "40/5400+30:1800+30"]

{[%evp 9,58,-10,-8,-4,-11,-62,-64,-72,-73,-72,-62,-84,-91,-87,-68,-72,-79,-79,-79,-70,-66,-66,-64,-122,-127,-153,-168,-252,-203,-295,-194,-192,-190,-397,-252,-241,-250,-316,-300,-1367,-1317,-1312,-1278,-1472,-1446,-1566,-418,-1543,-1549,-29997,-29998]} 1. d4 {[%emt 0:00:04]} d5 {[%emt 0:00:06][%cal Bd7d5,Bd5c4][%mdl 32]} 2. c4 {[%emt 0:00:02]} c6 {[%emt 0:00:11]} 3. Nc3 {[%emt 0:00:06]} Nf6 {[%emt 0:00:14]} 4. Nf3 {[%emt 0:00:17]} dxc4 {[%emt 0:00:41]} 5. e4 {[%emt 0:00:34]} b5 $1 {[%emt 0:00:15][%cal Bb7b5,Bb5b4][%mdl 32]} 6. Be2 {[%emt 0:00:41] D15: Slav Defence: 4 Nc3 a6 and gambit lines after 4 Nc3 dxc4.} e6 {[%emt 0:01:41]} 7. a4 {[%emt 0:07:16]} ({White should try} 7. O-O $11) 7... b4 $1 $15 {[%emt 0:00:10] [#]} 8. Na2 $146 {[%emt 0:00:43] Black is slightly better.} ({Predecessor:} 8. e5 bxc3 9. exf6 cxb2 10. fxg7 bxa1=Q 11. gxh8=Q Qa5+ 12. Nd2 c3 13. O-O {½-½ (13) Yakubboev,N (2621)-Matlakov,M (2691) Tashkent 2021}) 8... Nxe4 {[%emt 0:00:50]} 9. Bxc4 {[%emt 0:02:19]} Bb7 {[%emt 0:05:00]} 10. Be3 {[%emt 0:06:46]} Nd7 {[%emt 0:01:32]} 11. O-O {[%emt 0:06:39]} a5 {[%emt 0:02:22]} 12. Qc2 {[%emt 0:09:10]} Nef6 {[%emt 0:02:45]} 13. Nc1 {[%emt 0:04:29]} Be7 {[%emt 0:01:59]} 14. Nd3 {[%emt 0:05:27]} O-O {[%emt 0:02:18]} 15. Rfd1 {[%emt 0:04:27]} Nd5 {[%emt 0:02:07]} 16. Bd2 {[%emt 0:01:33]} (16. Qe2 $15) 16... Rc8 $17 {[%emt 0:01:31]} 17. Rac1 {[%emt 0:02:29]} c5 {[%emt 0:07:55]} 18. Qb3 {[%emt 0:07:20]} (18. dxc5 $142 Nxc5 19. Nde5) 18... cxd4 {[%emt 0:06:22] [#] White must now prevent ...N5b6.} 19. Nxd4 {[%emt 0:00:30]} (19. Bb5 {was worth a try.}) 19... Nc5 {[%emt 0:00:45]} 20. Nxc5 {[%emt 0:03:47]} Bxc5 {[%emt 0:00:08]} 21. Nc2 {[%emt 0:11:13]} (21. Qd3 {keeps fighting.}) 21... Bxf2+ {[%emt 0:08:16]} 22. Kxf2 {[%emt 0:01:28]} Qh4+ {[%emt 0:00:05]} 23. Kg1 {[%emt 0:00:48]} Rxc4 {[%emt 0:03:23]} 24. Bg5 $2 {[%emt 0:03:27] [#]} (24. Ne1 Rxc1 25. Bxc1) 24... Qxg5 $1 $19 {[%emt 0:09:56]} 25. Qxc4 {[%emt 0:00:41]} Nf4 {[%emt 0:00:16][%csl Gb7,Gf4][%cal Rg5g2,Bd5f4,Bf4h3,Bh3f2,Bf2h3][%mdl 32]} 26. Ne1 {[%emt 0:08:22]} Nh3+ {[%emt 0:05:02]} 27. Kh1 {[%emt 0:01:53]} Nf2+ {[%emt 0:00:09]} 28. Kg1 {[%emt 0:00:08]} Qe3 {[%emt 0:00:53] ( -> ...Nh3+)} 29. Nc2 {[%emt 0:02:24]} Nh3+ $1 {[%emt 0:00:19] Black took control after the opening.  Weighted Error Value: White=0.98/Black=0.11 (very precise)} ({And not} 29... Qg5 30. Kxf2 Qxg2+ 31. Ke1 $11) 0-1

[Event "44th Chess Olympiad Women 2022"]
[Site "Chennai"]
[Date "2022.07.29"]
[Round "1.13"]
[White "Eizaguerri Floris, Maria"]
[Black "Arai, Yuki"]
[Result "1-0"]
[ECO "C91"]
[WhiteElo "2176"]
[BlackElo "1495"]
[Annotator "TA"]
[PlyCount "29"]
[EventDate "2022.07.29"]
[EventType "team-tourn"]
[EventCountry "IND"]
[SourceTitle "playchess.com"]
[Source "ChessBase"]
[SourceQuality "1"]
[WhiteTeam "Spain"]
[BlackTeam "Japan"]
[WhiteTeamCountry "ESP"]
[BlackTeamCountry "JPN"]
[TimeControl "40/5400+30:1800+30"]

{[%evp 23,29,5,37,40,47,0,12,0]} 1. e4 {[%emt 0:00:05]} e5 {[%emt 0:00:07]} 2. Nf3 {[%emt 0:00:06]} Nc6 {[%emt 0:00:08]} 3. Bb5 {[%emt 0:00:09]} a6 {[%emt 0:00:13]} 4. Ba4 {[%emt 0:00:05]} Nf6 {[%emt 0:00:25]} 5. O-O {[%emt 0:00:12]} Be7 {[%emt 0:00:40]} 6. Re1 {[%emt 0:00:14]} b5 {[%emt 0:00:23]} 7. Bb3 {[%emt 0:00:06]} O-O {[%emt 0:00:38]} 8. c3 {[%emt 0:00:13]} d6 {[%emt 0:00:52]} 9. d4 {[%emt 0:00:51]} Bg4 {[%emt 0:01:12]} 10. Be3 {[%emt 0:00:26]} Na5 {[%emt 0:05:00]} 11. Bc2 {[%emt 0:00:19]} Nc4 {[%emt 0:02:36]} 12. Bc1 {[%emt 0:00:23]} c5 {[%emt 0:03:38]} 13. b3 {[%emt 0:03:11] C91: Closed Ruy Lopez: 7...d6 8 c3 0-0 9 d4.} Nb6 {[%emt 0:03:48]} 14. Be3 {[%emt 0:11:18]} (14. dxe5 $14 {was preferrable.} Bxf3 15. Qxf3 dxe5 16. Nd2) 14... Qc7 {[%emt 0:03:57] [#]} 15. d5 $146 {[%emt 0:05:11][%mdl 32768] Loss on time!?} ({Predecessor:} 15. Nbd2 Rac8 16. d5 Rfe8 17. h3 Bxf3 18. Qxf3 Bf8 19. Nf1 Nbd7 20. g4 g6 21. Ng3 {1-0 (77) Bulski,K (2482)-Kvisvik,B (2175) Ballerup 2011}) 1-0

[Event "44th Chess Olympiad Women 2022"]
[Site "Chennai"]
[Date "2022.07.29"]
[Round "1.13"]
[White "Misawa, Yuki"]
[Black "Calzetta Ruiz, Monica"]
[Result "0-1"]
[ECO "A48"]
[WhiteElo "1587"]
[BlackElo "2230"]
[Annotator "TA"]
[PlyCount "66"]
[EventDate "2022.07.29"]
[EventType "team-tourn"]
[EventCountry "IND"]
[SourceTitle "playchess.com"]
[Source "ChessBase"]
[SourceQuality "1"]
[WhiteTeam "Japan"]
[BlackTeam "Spain"]
[WhiteTeamCountry "JPN"]
[BlackTeamCountry "ESP"]
[TimeControl "40/5400+30:1800+30"]

{[%evp 14,66,8,5,4,0,4,-83,-85,-219,-214,-210,-216,-226,-227,-318,-303,-322,-323,-325,-321,-319,-325,-467,-440,-532,-375,-478,-483,-720,-712,-825,-825,-785,-785,-785,-777,-1312,-1309,-29971,-5515,-12266,-5351,-12379,-7198,-29976,-29977,-29985,-29986,-29993,-29989,-29989,-29990,-29990,-29988]} 1. d4 {[%emt 0:00:04]} Nf6 {[%emt 0:00:07]} 2. Nf3 {[%emt 0:00:04]} c5 {[%emt 0:00:20]} 3. c3 {[%emt 0:00:07]} g6 {[%emt 0:02:15]} 4. Bf4 {[%emt 0:00:12]} Bg7 {[%emt 0:02:23]} 5. e3 {[%emt 0:01:55]} O-O {[%emt 0:08:23]} 6. Be2 {[%emt 0:00:59]} d6 {[%emt 0:01:29]} 7. h3 {[%emt 0:09:25]} Qb6 {[%emt 0:03:15]} 8. Qb3 {[%emt 0:02:03]} Be6 {[%emt 0:00:17] A48: 1 d4 Nf6 2 Nf3 g6: Torre, London and Colle Systems.} 9. Qxb6 {[%emt 0:11:33] 9.Qa3 is the fancy move.} axb6 {[%emt 0:02:27]} 10. Na3 {[%emt 0:03:47]} (10. a3 $11) 10... Nd5 $17 {[%emt 0:02:14][%cal Od5c3] Hoping for ...Nxc3! Black is better.} 11. Bh2 {[%emt 0:05:07] [#]} (11. Nc2 $17 {is a better defense.}) 11... Nxc3 $1 $19 {[%emt 0:08:04][%mdl 512] [#]} 12. bxc3 $146 {[%emt 0:09:13]} ({Predecessor:} 12. Bc4 d5 13. Bd3 Nc6 14. O-O Ne4 15. Nb5 Nb4 16. Bb1 Ra5 17. Nc7 Nd6 18. Nxe6 fxe6 {0-1 (49) Dovzhenko,V (2069)-Scrimgour,A (2059) Prague 2020}) 12... Rxa3 {[%emt 0:01:21]} 13. Kd2 {[%emt 0:02:53]} Nd7 {[%emt 0:09:03]} (13... Rxa2+ 14. Rxa2 Bxa2 15. Bg3) 14. Ng5 {[%emt 0:06:48]} (14. Ne1 {was necessary.}) 14... Rfa8 {[%emt 0:08:52][%cal Bf8a8,Ba8a2,Ba2f2][%mdl 32]} ({But not} 14... Bxa2 $2 15. Rhb1 $19) ({And not} 14... Rxa2+ 15. Rxa2 Bxa2 16. Ra1 $17) 15. Nxe6 {[%emt 0:03:15]} Rxa2+ {[%emt 0:00:15]} ({Inferior is} 15... fxe6 16. Rhc1 $17) 16. Rxa2 {[%emt 0:01:06]} Rxa2+ {[%emt 0:00:06]} 17. Kd3 {[%emt 0:07:51]} fxe6 {[%emt 0:00:25]} 18. Bf3 {[%emt 0:04:41]} (18. Bg4 $142 Kf7 19. Rb1) 18... b5 {[%emt 0:24:35]} 19. Rb1 {[%emt 0:07:54]} c4+ {[%emt 0:03:48]} 20. Ke4 {[%emt 0:00:24]} Rxf2 {[%emt 0:00:26] [#] ( -> ...g5)} 21. Rxb5 {[%emt 0:03:20]} (21. Kf4 $142 Nf6 22. Kg3) 21... Bh6 {[%emt 0:01:41][%cal Rd7f6]} 22. d5 {[%emt 0:09:53]} e5 {[%emt 0:00:20]} 23. Bxe5 {[%emt 0:00:38]} Nxe5 {[%emt 0:00:15]} 24. Rxb7 {[%emt 0:01:08]} Kf7 {[%emt 0:02:05] aiming for ...Rc2.} 25. Rb8 {[%emt 0:04:39]} Rc2 {[%emt 0:03:52]} 26. Kd4 {[%emt 0:01:36]} Rd2+ {[%emt 0:00:31]} 27. Ke4 {[%emt 0:00:20]} Nd7 {[%emt 0:00:16][%cal Rd7c5]} 28. Bg4 {[%emt 0:02:07]} Nxb8 {[%emt 0:00:22]} 29. Be6+ {[%emt 0:00:21]} Ke8 {[%emt 0:00:25] Black mates.} 30. g4 {[%emt 0:00:28]} Nd7 {[%emt 0:00:23]} 31. Bg8 {[%emt 0:00:15]} Nf6+ {[%emt 0:00:06]} 32. Kf3 {[%emt 0:00:14]} Nxg8 {[%emt 0:00:12]} 33. h4 {[%emt 0:00:45]} Rxd5 {[%emt 0:00:34] White got outplayed after the opening.  Weighted Error Value: White=1.19/Black=0.14 (very precise)} 0-1